fUST/lending_fUST_20240813
["ID","MTS","AMOUNT","RATE_DAILY","PERIOD"]
[334776261,1723547461522,-500.0,0.00014794,2]
[334776262,1723547461531,-500.0,0.00014794,2]
[334776263,1723547461626,-1023.0,0.00014794,2]
[334776264,1723547461644,-500.0,0.00014794,2]
[334776265,1723547461654,-500.0,0.00014794,2]
[334776266,1723547461664,-909.2,0.00014794,2]
[334776267,1723547461673,-1084.41,0.00014794,2]
[334776268,1723547461682,-1124.92,0.00014794,2]
[334776269,1723547461692,-844.3,0.00014794,2]
[334776270,1723547461702,-500.0,0.00014794,2]
[334776271,1723547461712,-500.0,0.00014794,2]
[334776272,1723547461727,-500.0,0.00014794,2]
[334776273,1723547461738,-4591.46,0.00014794,2]
[334776274,1723547461749,-1177.25,0.00014794,2]
[334776275,1723547461760,-1574.28,0.00014794,2]
[334776276,1723547461772,-921.99,0.00014794,2]
[334776277,1723547461782,-545.63,0.00014794,2]
[334776278,1723547461794,-500.0,0.00014794,2]
[334776279,1723547461806,-1095.67,0.00014794,2]
[334776280,1723547461818,-1703.11,0.00014794,2]
[334776281,1723547461829,-883.51,0.00014794,2]
[334776282,1723547461840,-722.57,0.00014794,2]
[334776283,1723547461849,-1262.86,0.00014794,2]
[334776284,1723547461860,-1957.65,0.00014794,2]
[334776285,1723547461872,-500.0,0.00014794,2]
[334776286,1723547461883,-627.53,0.00014794,2]
[334776287,1723547461895,-6324.26,0.00014794,2]
[334776288,1723547461906,-1284.41,0.00014794,2]
[334776289,1723547461916,-500.0,0.00014794,2]
[334776290,1723547461926,-500.0,0.00014794,2]
[334776291,1723547461936,-851.53,0.00014794,2]
[334776292,1723547461946,-500.0,0.00014794,2]
[334776293,1723547461956,-500.0,0.00014794,2]
[334776294,1723547461965,-438.02235332,0.00014794,2]
[334776295,1723547462717,-504.50337806,0.00013698,2]
[334776296,1723547462727,-702.03764668,0.00014794,2]
[334776297,1723547462736,-1747.47,0.00014794,2]
[334776298,1723547462745,-500.0,0.00014794,2]
[334776299,1723547462756,-745.88,0.00014794,2]
[334776300,1723547462765,-500.0,0.00014794,2]
[334776301,1723547462774,-689.79,0.00014794,2]
[334776302,1723547462784,-689.96,0.00014794,2]
[334776303,1723547462794,-500.0,0.00014794,2]
[334776304,1723547462804,-500.0,0.00014794,2]
[334776305,1723547462814,-3582.61,0.00014794,2]
[334776306,1723547462823,-3334.23,0.00014794,2]
[334776307,1723547462833,-667.22,0.00014794,2]
[334776308,1723547462842,-642.24,0.00014794,2]
[334776309,1723547462851,-1034.17,0.00014794,2]
[334776310,1723547462861,-500.0,0.00014794,2]
[334776311,1723547462871,-376.03971067,0.00014794,2]
[334776312,1723547462880,-500.0,0.00014794,2]
[334776313,1723547462890,-500.0,0.00014794,2]
[334776314,1723547462899,-1406.5,0.00014794,2]
[334776315,1723547462909,-700.69,0.00014794,2]
[334776316,1723547462919,-579.8,0.00014794,2]
[334776317,1723547462929,-500.0,0.00014794,2]
[334776318,1723547462940,-3670.75,0.00014794,2]
[334776319,1723547462950,-505.27,0.00014794,2]
[334776320,1723547462960,-500.0,0.00014794,2]
[334776321,1723547462971,-844.29,0.00014794,2]
[334776322,1723547462981,-925.22,0.00014794,2]
[334776323,1723547462991,-626.5,0.00014794,2]
[334776324,1723547463000,-1276.6,0.00014794,2]
[334776325,1723547463010,-500.0,0.00014794,2]
[334776326,1723547463019,-500.0,0.00014794,2]
[334776327,1723547463029,-465.02914643,0.00014807,2]
[334776328,1723547463038,-419.93367199,0.000149,2]
[334776329,1723547463047,-419.93367198,0.000149,2]
[334776330,1723547463057,-154.76012181,0.00014999,2]
[334776331,1723547463066,-5241.59592518,0.00015,2]
[334776332,1723547463076,-952.87596009,0.00015,2]
[334776333,1723547463085,-336.59268156,0.00015,2]
[334776334,1723547463108,-493.00364752,0.00015,2]
[334776335,1723547463119,-817.13111103,0.00015,2]
[334776336,1723547463128,-2852.7407087,0.00015,2]
[334776337,1723547463138,-813.29801715,0.00015,2]
[334776338,1723547463147,-1110.12328868,0.00015,2]
[334776339,1723547463158,-460.04462709,0.00015,4]
[334776340,1723547463168,-154.89911116,0.00015,2]
[334776341,1723547463178,-400.0,0.00015042,2]
[334776342,1723547463188,-400.0,0.00015042,2]
[334776343,1723547463198,-400.0,0.00015042,2]
[334776344,1723547463208,-400.0,0.00015042,2]
[334776345,1723547463219,-740.77,0.00015068,2]
[334776346,1723547463229,-233.62421292,0.00015068,2]
[334776347,1723547463239,-500.0,0.00015068,2]
[334776348,1723547463250,-500.00538985,0.00015068,2]
[334776349,1723547463260,-500.0,0.00015068,2]
[334776350,1723547463271,-500.0,0.00015068,2]
[334776351,1723547463282,-500.0,0.00015068,2]
[334776352,1723547463293,-500.0,0.00015068,2]
[334776353,1723547463304,-542.21,0.00015068,2]
[334776354,1723547463315,-500.0,0.00015068,2]
[334776355,1723547463325,-500.0,0.00015068,2]
[334776356,1723547463335,-500.0,0.00015068,2]
[334776357,1723547463345,-795.11,0.00015068,2]
[334776358,1723547463356,-500.0,0.00015068,2]
[334776359,1723547463367,-592.56,0.00015068,2]
[334776360,1723547463378,-561.84,0.00015068,2]
[334776361,1723547463389,-1236.77,0.00015068,2]
[334776362,1723547463403,-500.0,0.00015068,2]
[334776363,1723547463413,-500.0,0.00015068,2]
[334776364,1723547463423,-1777.12,0.00015068,2]
[334776365,1723547463433,-500.0,0.00015068,2]
[334776366,1723547463443,-500.0,0.00015068,2]
[334776367,1723547463454,-500.0,0.00015068,2]
[334776368,1723547463466,-500.0,0.00015068,2]
[334776369,1723547463477,-500.0,0.00015068,2]
[334776370,1723547463488,-500.0,0.00015068,2]
[334776371,1723547463500,-500.0,0.00015068,2]
[334776372,1723547463510,-583.29,0.00015068,2]
[334776373,1723547463520,-510.62,0.00015068,2]
[334776374,1723547463530,-500.0,0.00015068,2]
[334776375,1723547463540,-500.0,0.00015068,2]
[334776376,1723547463550,-500.0,0.00015068,2]
[334776377,1723547463561,-561.9,0.00015068,2]
[334776378,1723547463571,-500.0,0.00015068,2]
[334776379,1723547463581,-500.0,0.00015068,2]
[334776380,1723547463591,-500.0,0.00015068,2]
[334776381,1723547463601,-815.97,0.00015068,2]
[334776382,1723547463611,-500.0,0.00015068,2]
[334776383,1723547463621,-500.0,0.00015068,2]
[334776384,1723547463771,-500.0,0.00015068,2]
[334776385,1723547463781,-500.0,0.00015068,2]
[334776386,1723547463791,-500.0,0.00015068,2]
[334776387,1723547463802,-728.09,0.00015068,2]
[334776388,1723547463813,-500.0,0.00015068,2]
[334776389,1723547463823,-500.0,0.00015068,2]
[334776390,1723547463833,-500.0,0.00015068,2]
[334776391,1723547463843,-500.0,0.00015068,2]
[334776392,1723547463852,-500.0,0.00015068,2]
[334776393,1723547463863,-654.27,0.00015068,2]
[334776394,1723547463874,-564.58,0.00015068,2]
[334776395,1723547463885,-503.55,0.00015068,2]
[334776396,1723547463898,-500.0,0.00015068,2]
[334776397,1723547463908,-816.27,0.00015068,2]
[334776398,1723547463918,-500.0,0.00015068,2]
[334776399,1723547463929,-714.56,0.00015068,2]
[334776400,1723547463939,-771.75,0.00015068,2]
[334776401,1723547463952,-1407.2,0.00015068,2]
[334776402,1723547463962,-1040.88,0.00015068,2]
[334776403,1723547463972,-1410.90837611,0.00015068,2]
[334776404,1723547464003,-124.22162389,0.00015068,2]
[334776405,1723547464013,-740.2,0.00015068,2]
[334776406,1723547464023,-500.0,0.00015068,2]
[334776407,1723547464033,-1924.1,0.00015068,2]
[334776408,1723547464044,-500.0,0.00015068,2]
[334776409,1723547464054,-1288.58207248,0.00015068,2]
[334776456,1723548639129,-600.0,9.898e-05,2]
[334776457,1723548639140,-300.0,9.998e-05,2]
[334776458,1723548639151,-154.76012181,9.999e-05,2]
[334776459,1723548639162,-636.72640188,9.999e-05,2]
[334776460,1723548639173,-404.1964714,9.999e-05,2]
[334776461,1723548639183,-189.9631639,9.999e-05,2]
[334776462,1723548639195,-809.49275165,9.999e-05,2]
[334776463,1723548639204,-170.23158883,9.999e-05,2]
[334776464,1723548639215,-156.91451497,9.999e-05,2]
[334776465,1723548639224,-694.90272385,9.999e-05,2]
[334776466,1723548639235,-850.36837131,9.999e-05,2]
[334776467,1723548639245,-154.76012181,9.999e-05,2]
[334776468,1723548639256,-543.67907992,9.999e-05,2]
[334776469,1723548639267,-209.42836987,9.999e-05,2]
[334776470,1723548639277,-165.7378718,9.999e-05,2]
[334776471,1723548639287,-157.00320308,9.999e-05,2]
[334776472,1723548639297,-188.76776838,9.999e-05,2]
[334776473,1723548639309,-320.08358525,9.999e-05,2]
[334776474,1723548639318,-600.74673084,9.999e-05,2]
[334776475,1723548639331,-665.04001235,9.999e-05,2]
[334776476,1723548639342,-494.81071941,9.999e-05,2]
[334776477,1723548639352,-522.96413212,9.999e-05,2]
[334776478,1723548639364,-301.33703286,9.999e-05,2]
[334776479,1723548639375,-157.99537743,9.999e-05,2]
[334776480,1723548639385,-420.0,0.00010998,2]
[334776481,1723548639394,-24900.0,0.00011797,2]
[334776482,1723548639404,-587.0,0.00012098,2]
[334776483,1723548639413,-1318.6189438,0.00013,2]
[334776484,1723548639423,-37570.85524187,0.00013588,2]
[334776485,1723548639433,-1413.0,0.00013645,2]
[334776486,1723548639445,-150.0,0.00013645,2]
[334776487,1723548639456,-508.0,0.00013645,2]
[334776488,1723548639466,-200.0,0.00013673,2]
[334776489,1723548639476,-200.0,0.00013673,2]
[334776490,1723548639488,-200.0,0.00013673,2]
[334776491,1723548639498,-200.0,0.00013673,2]
[334776492,1723548639508,-200.0,0.00013673,2]
[334776493,1723548639518,-103206.588938,0.00013678,2]
[334776494,1723548639528,-32193.4280473,0.00013688,2]
[334776495,1723548639538,-286918.10195663,0.00013688,2]
[334776507,1723548640534,-22701.66485637,0.00013688,2]
[334776509,1723548640544,-500.0,0.00013698,2]
[334776511,1723548640554,-500.42672675,0.00013698,2]
[334776513,1723548640564,-503.93061823,0.00013698,2]
[334776515,1723548640575,-500.0,0.00013698,2]
[334776517,1723548640585,-500.0,0.00013698,2]
[334776519,1723548640595,-500.0,0.00013698,2]
[334776520,1723548640605,-500.0,0.00013698,2]
[334776522,1723548640615,-501.22635763,0.00013698,2]
[334776523,1723548640625,-979.11,0.00013698,2]
[334776524,1723548640635,-500.0,0.00013698,2]
[334776525,1723548640644,-1406.89,0.00013698,2]
[334776526,1723548640653,-505.92990802,0.00013698,2]
[334776527,1723548640663,-500.0,0.00013698,2]
[334776528,1723548640672,-500.0,0.00013698,2]
[334776529,1723548640682,-504.90662939,0.00013698,2]
[334776530,1723548640697,-150.36652279,0.00013698,2]
[334776531,1723548640707,-235.05888984,0.00013698,2]
[334776532,1723548640716,-505.80045931,0.00013698,2]
[334776533,1723548640726,-500.0,0.00013698,2]
[334776534,1723548640737,-503.19311323,0.00013698,2]
[334776535,1723548640747,-500.0,0.00013698,2]
[334776536,1723548640756,-500.0,0.00013698,2]
[334776537,1723548640767,-500.0,0.00013698,2]
[334776538,1723548640782,-506.99395456,0.00013698,2]
[334776539,1723548640792,-500.0,0.00013698,2]
[334776540,1723548640802,-500.0,0.00013698,2]
[334776541,1723548640814,-500.0,0.00013698,2]
[334776542,1723548640823,-500.0,0.00013698,2]
[334776543,1723548640835,-507.72251785,0.00013698,2]
[334776544,1723548640844,-500.0,0.00013698,2]
[334776545,1723548640858,-500.0,0.00013698,2]
[334776546,1723548640868,-503.06175739,0.00013698,2]
[334776547,1723548640878,-500.0,0.00013698,2]
[334776548,1723548640888,-500.0,0.00013698,2]
[334776549,1723548640901,-154.76012181,0.00013698,2]
[334776550,1723548640912,-500.0,0.00013698,2]
[334776551,1723548640924,-500.0,0.00013698,2]
[334776552,1723548640939,-503.71558281,0.00013698,2]
[334776553,1723548640949,-500.0,0.00013698,2]
[334776554,1723548640958,-500.0,0.00013698,2]
[334776555,1723548640967,-324.31541479,0.00013698,2]
[334776556,1723548640977,-500.0,0.00013698,2]
[334776557,1723548640986,-500.0,0.00013698,2]
[334776558,1723548640996,-510.89484619,0.00013698,2]
[334776559,1723548641005,-500.0,0.00013698,2]
[334776560,1723548641015,-545.23,0.00013698,2]
[334776561,1723548641024,-500.0,0.00013698,2]
[334776562,1723548641035,-703.57,0.00013698,2]
[334776563,1723548641044,-500.0,0.00013698,2]
[334776564,1723548641055,-500.0,0.00013698,2]
[334776565,1723548641067,-500.0,0.00013698,2]
[334776566,1723548641077,-500.0,0.00013698,2]
[334776567,1723548641087,-585.99,0.00013698,2]
[334776568,1723548641097,-500.0,0.00013698,2]
[334776569,1723548641109,-500.0,0.00013698,2]
[334776570,1723548641119,-500.0,0.00013698,2]
[334776571,1723548641130,-500.0,0.00013698,2]
[334776572,1723548641140,-500.0,0.00013698,2]
[334776573,1723548641151,-500.0,0.00013698,2]
[334776574,1723548641161,-500.0,0.00013698,2]
[334776575,1723548641172,-500.0,0.00013698,2]
[334776576,1723548641181,-500.0,0.00013698,2]
[334776577,1723548641195,-500.0,0.00013698,2]
[334776578,1723548641206,-500.0,0.00013698,2]
[334776579,1723548641215,-500.0,0.00013698,2]
[334776580,1723548641225,-500.0,0.00013698,2]
[334776581,1723548641235,-500.0,0.00013698,2]
[334776582,1723548641244,-500.0,0.00013698,2]
[334776583,1723548641256,-500.0,0.00013698,2]
[334776584,1723548641266,-500.0,0.00013698,2]
[334776585,1723548641276,-500.0,0.00013698,2]
[334776586,1723548641287,-500.0,0.00013698,2]
[334776587,1723548641298,-500.0,0.00013698,2]
[334776588,1723548641310,-500.0,0.00013698,2]
[334776589,1723548641320,-376.03971067,0.00013698,2]
[334776590,1723548641330,-500.0,0.00013698,2]
[334776591,1723548641341,-500.0,0.00013698,2]
[334776592,1723548641352,-606.74,0.00013698,2]
[334776593,1723548641364,-500.0,0.00013698,2]
[334776594,1723548641375,-617.23,0.00013698,2]
[334776595,1723548641386,-679.98,0.00013698,2]
[334776596,1723548641395,-500.0,0.00013698,2]
[334776597,1723548641405,-500.0,0.00013698,2]
[334776598,1723548641415,-500.0,0.00013698,2]
[334776599,1723548641426,-500.0,0.00013698,2]
[334776600,1723548641444,-500.0,0.00013698,2]
[334776601,1723548641454,-500.0,0.00013698,2]
[334776602,1723548641464,-500.0,0.00013698,2]
[334776603,1723548641476,-500.0,0.00013698,2]
[334776604,1723548641486,-500.0,0.00013698,2]
[334776605,1723548641495,-500.0,0.00013698,2]
[334776606,1723548641505,-500.0,0.00013698,2]
[334776607,1723548641514,-463.29533031,0.00013698,2]
[334776608,1723548641523,-500.0,0.00013698,2]
[334776609,1723548641533,-500.0,0.00013698,2]
[334776610,1723548641542,-517.53,0.00013698,2]
[334776611,1723548641552,-500.0,0.00013698,2]
[334776612,1723548641561,-500.0,0.00013698,2]
[334776613,1723548641570,-500.0,0.00013698,2]
[334776614,1723548641579,-500.0,0.00013698,2]
[334776615,1723548641589,-502.93887016,0.00013698,2]
[334776616,1723548641599,-500.0,0.00013698,2]
[334776617,1723548641608,-504.60567424,0.00013698,2]
[334776618,1723548641617,-500.0,0.00013698,2]
[334776619,1723548641629,-500.0,0.00013698,2]
[334776620,1723548641640,-500.0,0.00013698,2]
[334776621,1723548641650,-500.0,0.00013698,2]
[334776622,1723548641659,-748.25,0.00013698,2]
[334776623,1723548641668,-500.0,0.00013698,2]
[334776624,1723548641678,-500.0,0.00013698,2]
[334776625,1723548641687,-500.0,0.00013698,2]
[334776626,1723548641696,-500.0,0.00013698,2]
[334776627,1723548641706,-500.0,0.00013698,2]
[334776628,1723548641716,-500.0,0.00013698,2]
[334776629,1723548641726,-500.0,0.00013698,2]
[334776630,1723548641735,-500.0,0.00013698,2]
[334776631,1723548641745,-500.0,0.00013698,2]
[334776632,1723548641755,-241.70916426,0.00013698,2]
[334776642,1723548643533,-145.47879445,9.9e-05,2]
[334776725,1723549832516,-600.0,9.077e-05,2]
[334776727,1723549832526,-300.0,9.262e-05,2]
[334776729,1723549832536,-300.0,9.262e-05,2]
[334776732,1723549832546,-252.74252072,9.263e-05,2]
[334776734,1723549832557,-2407.12880654,9.263e-05,2]
[334776877,1723549838906,-2544.56627382,9.17e-05,2]
[334776878,1723549838916,-22240.12867274,9.263e-05,2]
[334776879,1723549838926,-979.67638421,9.798e-05,2]
[334776880,1723549838936,-191.86990472,9.8e-05,2]
[334776881,1723549838946,-510.06692442,9.9e-05,2]
[334776882,1723549838956,-245.65179562,9.9e-05,2]
[334776883,1723549838967,-2075.52213182,9.9e-05,2]
[334776884,1723549838979,-3340.96960453,9.9e-05,2]
[334776885,1723549838990,-2084.83844091,9.9e-05,2]
[334776886,1723549839000,-223.78071941,9.9e-05,2]
[334776887,1723549839010,-850.62947113,9.999e-05,2]
[334776888,1723549839019,-154.77557542,9.999e-05,2]
[334776889,1723549839029,-155.49889586,9.999e-05,2]
[334776890,1723549839038,-249.53341286,9.999e-05,2]
[334776891,1723549839051,-809.49275165,9.999e-05,2]
[334776892,1723549839060,-636.72640188,9.999e-05,2]
[334776893,1723549839070,-154.78689557,9.999e-05,2]
[334776894,1723549839080,-209.42836987,9.999e-05,2]
[334776895,1723549839090,-728.15079492,9.999e-05,2]
[334776896,1723549839100,-205.42133969,9.999e-05,2]
[334776897,1723549839111,-543.67907992,9.999e-05,2]
[334776898,1723549839122,-165.7378718,9.999e-05,2]
[334776899,1723549839134,-154.77557542,9.999e-05,2]
[334776900,1723549839146,-157.00320308,9.999e-05,2]
[334776901,1723549839157,-320.08358525,9.999e-05,2]
[334776902,1723549839168,-240.23809487,9.999e-05,2]
[334776903,1723549839187,-520.25072733,9.999e-05,2]
[334776904,1723549839197,-1020.88413461,9.999e-05,2]
[334776905,1723549839209,-156.91451497,9.999e-05,2]
[334776906,1723549839220,-280.26615673,9.999e-05,2]
[334776907,1723549839231,-528.08203365,9.999e-05,2]
[334776908,1723549839242,-342.43792084,9.999e-05,2]
[334776909,1723549839254,-182.35195424,9.999e-05,2]
[334776910,1723549839265,-202.12172355,9.999e-05,2]
[334776911,1723549839278,-810.88959894,9.999e-05,2]
[334776912,1723549839288,-183.31414419,9.999e-05,2]
[334776913,1723549839300,-157.14199098,9.999e-05,2]
[334776914,1723549839309,-301.92146246,9.999e-05,2]
[334776915,1723549839319,-524.26718011,9.999e-05,2]
[334776916,1723549839329,-156.78137498,9.999e-05,2]
[334776917,1723549839338,-256.09370511,9.999e-05,2]
[334776918,1723549839348,-309.67712516,9.999e-05,2]
[334776919,1723549839358,-260.49830259,9.999e-05,2]
[334776920,1723549839369,-154.76012181,9.999e-05,2]
[334776921,1723549839378,-301.20870799,9.999e-05,2]
[334776922,1723549839388,-189.9631639,9.999e-05,2]
[334776923,1723549839398,-600.74673084,9.999e-05,2]
[334776924,1723549839408,-494.81071941,9.999e-05,2]
[334776925,1723549839418,-289.49108057,0.0001,2]
[334776926,1723549839427,-154.76012181,0.0001,2]
[334776927,1723549839437,-420.0,0.00010188,2]
[334776928,1723549839446,-420.0,0.00010188,2]
[334776929,1723549839455,-300.0,0.00011207,2]
[334776930,1723549839465,-615.94819923,0.000128,2]
[334776931,1723549839474,-395.38689187,0.00012839,2]
[334776932,1723549839484,-2165.07497988,0.000129,2]
[334776933,1723549839495,-2165.07497982,0.000129,2]
[334776934,1723549839505,-18514.79777626,0.00013,2]
[334776935,1723549839514,-615.94819921,0.00013199,2]
[334776936,1723549839524,-306.0,0.00013288,2]
[334776937,1723549839533,-150.0,0.00013516,2]
[334776938,1723549839543,-150.0,0.00013563,2]
[334776939,1723549839552,-508.0,0.00013563,2]
[334776940,1723549839561,-1413.0,0.00013563,2]
[334776941,1723549839571,-150.0,0.00013563,2]
[334776942,1723549839581,-1884.17847321,0.00013598,2]
[334776943,1723549839591,-2425.33816467,0.00013598,2]
[334776944,1723549839600,-615.94819921,0.00013598,2]
[334776945,1723549839610,-2425.33816467,0.00013667,2]
[334776946,1723549839620,-83023.3059111,0.00013668,2]
[334776947,1723549839630,-5323.40502986,0.00013672,2]
[334776948,1723549839644,-200.0,0.00013673,2]
[334776949,1723549839653,-16096.71402365,0.00013688,2]
[334776950,1723549839663,-278599.88651281,0.00013688,2]
[334776951,1723549839682,-29643.4161016,0.00013688,2]
[334777001,1723549846838,-23849.92102959,0.00013688,2]
[334777002,1723549846848,-500.0,0.00013698,2]
[334777003,1723549846858,-500.0,0.00013698,2]
[334777004,1723549846868,-471.92438247,0.00013698,2]
[334777005,1723549846879,-509.77033415,0.00013698,2]
[334777006,1723549846889,-604.29,0.00013698,2]
[334777007,1723549846903,-500.0,0.00013698,2]
[334777008,1723549846914,-500.0,0.00013698,2]
[334777009,1723549846925,-500.0,0.00013698,2]
[334777010,1723549846935,-500.0,0.00013698,2]
[334777011,1723549846944,-500.0,0.00013698,2]
[334777012,1723549846954,-623.26,0.00013698,2]
[334777013,1723549846964,-500.0,0.00013698,2]
[334777014,1723549846973,-500.0,0.00013698,2]
[334777015,1723549846982,-501.14263449,0.00013698,2]
[334777016,1723549846993,-500.0,0.00013698,2]
[334777017,1723549847003,-500.0,0.00013698,2]
[334777018,1723549847012,-500.0,0.00013698,2]
[334777019,1723549847022,-500.0,0.00013698,2]
[334777020,1723549847031,-500.0,0.00013698,2]
[334777021,1723549847041,-500.0,0.00013698,2]
[334777022,1723549847050,-500.0,0.00013698,2]
[334777023,1723549847059,-500.0,0.00013698,2]
[334777024,1723549847069,-500.0,0.00013698,2]
[334777025,1723549847078,-500.0,0.00013698,2]
[334777026,1723549847089,-500.0,0.00013698,2]
[334777027,1723549847100,-500.0,0.00013698,2]
[334777028,1723549847112,-500.0,0.00013698,2]
[334777029,1723549847121,-510.65,0.00013698,2]
[334777030,1723549847131,-714.97,0.00013698,2]
[334777031,1723549847141,-500.0,0.00013698,2]
[334777032,1723549847150,-779.79,0.00013698,2]
[334777033,1723549847160,-500.0,0.00013698,2]
[334777034,1723549847170,-500.0,0.00013698,2]
[334777035,1723549847181,-500.0,0.00013698,2]
[334777036,1723549847191,-500.0,0.00013698,2]
[334777037,1723549847201,-500.0,0.00013698,2]
[334777038,1723549847210,-500.0,0.00013698,2]
[334777039,1723549847222,-500.0,0.00013698,2]
[334777040,1723549847233,-500.0,0.00013698,2]
[334777041,1723549847243,-517.6,0.00013698,2]
[334777042,1723549847254,-500.0,0.00013698,2]
[334777043,1723549847265,-500.0,0.00013698,2]
[334777044,1723549847275,-500.0,0.00013698,2]
[334777045,1723549847284,-500.0,0.00013698,2]
[334777046,1723549847293,-500.0,0.00013698,2]
[334777047,1723549847302,-500.0,0.00013698,2]
[334777048,1723549847311,-500.0,0.00013698,2]
[334777049,1723549847321,-500.0,0.00013698,2]
[334777050,1723549847331,-500.0,0.00013698,2]
[334777051,1723549847340,-607.14541429,0.00013698,2]
[334777052,1723549847350,-500.0,0.00013698,2]
[334777053,1723549847362,-500.0,0.00013698,2]
[334777054,1723549847373,-170.21343717,0.00013698,2]
[334777055,1723549847383,-500.0,0.00013698,2]
[334777056,1723549847393,-500.0,0.00013698,2]
[334777057,1723549847405,-500.0,0.00013698,2]
[334777058,1723549847416,-500.0,0.00013698,2]
[334777059,1723549847428,-500.0,0.00013698,2]
[334777060,1723549847439,-384.5,0.00013698,2]
[334777061,1723549847450,-500.0,0.00013698,2]
[334777062,1723549847460,-561.5535722,0.00013698,2]
[334777063,1723549847470,-500.0,0.00013698,2]
[334777064,1723549847480,-546.2636575,0.00013698,2]
[334777065,1723549847490,-500.0,0.00013698,2]
[334777066,1723549847499,-500.0,0.00013698,2]
[334777067,1723549847509,-501.81780332,0.00013698,2]
[334777068,1723549847520,-500.0,0.00013698,2]
[334777069,1723549847530,-500.0,0.00013698,2]
[334777070,1723549847540,-500.0,0.00013698,2]
[334777071,1723549847552,-500.0,0.00013698,2]
[334777072,1723549847563,-500.0,0.00013698,2]
[334777073,1723549847573,-504.46577119,0.00013698,2]
[334777074,1723549847583,-505.99767687,0.00013698,2]
[334777075,1723549847592,-545.02,0.00013698,2]
[334777076,1723549847601,-500.0,0.00013698,2]
[334777077,1723549847611,-500.0,0.00013698,2]
[334777078,1723549847623,-500.0,0.00013698,2]
[334777079,1723549847632,-500.0,0.00013698,2]
[334777080,1723549847641,-245.80356441,0.00013698,2]
[334777081,1723549847651,-500.0,0.00013698,2]
[334777082,1723549847661,-500.0,0.00013698,2]
[334777083,1723549847670,-497.95581423,0.00013698,2]
[334777084,1723549847680,-504.93496476,0.00013698,2]
[334777085,1723549847690,-500.0,0.00013698,2]
[334777086,1723549847700,-538.82624112,0.00013698,2]
[334777087,1723549847709,-500.0,0.00013698,2]
[334777088,1723549847721,-500.0,0.00013698,2]
[334777089,1723549847731,-507.12995694,0.00013698,2]
[334777090,1723549847740,-500.0,0.00013698,2]
[334777091,1723549847749,-500.0,0.00013698,2]
[334777092,1723549847759,-500.0,0.00013698,2]
[334777093,1723549847768,-753.64,0.00013698,2]
[334777094,1723549847777,-500.0,0.00013698,2]
[334777095,1723549847786,-503.6395211,0.00013698,2]
[334777096,1723549847795,-500.0,0.00013698,2]
[334777097,1723549847804,-531.93927027,0.00013698,2]
[334777098,1723549847814,-500.0,0.00013698,2]
[334777099,1723549847823,-500.0,0.00013698,2]
[334777100,1723549847833,-500.0,0.00013698,2]
[334777101,1723549847841,-500.0,0.00013698,2]
[334777102,1723549847851,-506.63667381,0.00013698,2]
[334777103,1723549847860,-515.89106309,0.00013698,2]
[334777104,1723549847869,-500.0,0.00013698,2]
[334777105,1723549847878,-500.0,0.00013698,2]
[334777106,1723549847887,-500.0,0.00013698,2]
[334777107,1723549847897,-500.0,0.00013698,2]
[334777108,1723549847906,-500.0,0.00013698,2]
[334777109,1723549847915,-500.0,0.00013698,2]
[334777110,1723549847924,-500.0,0.00013698,2]
[334777111,1723549847933,-500.0,0.00013698,2]